bitfinex/quotes_ETHUSD_20241212
["timestamp","ask_amount","ask_price","bid_price","bid_amount"]
[1733963251032,2.61552,3823.4,3822.5,0.7956]
[1733963251227,0.79211197,3823.3,3822.5,0.7956]
[1733963251537,0.55,3823.1,3822.5,0.7956]
[1733963252194,0.55,3823.2,3822.5,0.7956]
[1733963252534,2.45031346,3823.7,3822.5,0.7956]
[1733963252535,0.55,3823.5,3822.5,0.7956]
[1733963252816,0.55,3823.3,3822.5,0.7956]
[1733963252993,0.55,3823.1,3822.5,0.7956]
[1733963253971,2.61549,3823.4,3822.5,0.7956]
[1733963254173,0.55,3823.3,3822.5,0.7956]
[1733963254442,0.79183048,3823.3,3822.5,0.7956]
[1733963254955,0.55,3823.3,3822.5,0.7956]
[1733963255152,2.45031346,3824.1,3822.5,0.7956]
[1733963255371,2.61516,3823.9,3822.8,0.7956]
[1733963255569,2.85704761,3823.8,3822.8,0.7956]
[1733963255744,0.24184761,3823.7,3822.8,0.7956]
[1733963255941,0.24184761,3823.9,3822.8,0.7956]
[1733963256137,0.24184761,3823.8,3822.8,0.7956]
[1733963256473,2.58201689,3824.1,3822.8,0.7956]
[1733963256474,0.55,3823.6,3822.8,0.7956]
[1733963256712,3.16537,3823.6,3822.8,0.7956]
[1733963256897,2.39331346,3823.3,3822.0,0.8286]
[1733963257071,2.61569,3823.1,3822.0,0.8286]
[1733963257994,2.61569,3823.1,3822.1,0.8286]
[1733963258201,5.00885346,3823.3,3822.1,1.6135]
[1733963258401,0.24174768,3823.2,3822.2,0.8286]
[1733963258909,0.24174768,3823.2,3822.4,0.8286]
[1733963259089,0.24174768,3823.5,3822.5,0.8286]
[1733963259400,0.13639791,3824.7,3822.6,0.8286]
[1733963259401,2.6152,3823.8,3822.6,0.8286]
[1733963259564,0.24176986,3823.7,3822.6,0.8286]
[1733963260345,0.24176986,3823.7,3822.6,1.6134]
[1733963260599,0.24176986,3823.7,3822.7,0.8286]
[1733963261202,0.24176986,3823.7,3822.7,0.78476]
[1733963261364,0.55,3823.9,3822.8,0.8286]
[1733963261717,0.24176986,3823.8,3822.8,0.8286]
[1733963262176,2.85704986,3823.7,3822.8,0.8286]
[1733963262379,0.24176986,3823.6,3822.8,0.8286]
[1733963263101,2.61512,3824.0,3822.9,0.8286]
[1733963263398,0.24197427,3823.9,3822.9,0.8286]
[1733963263602,0.24197427,3823.8,3822.9,0.8286]
[1733963263900,0.24197427,3823.7,3822.9,0.8286]
[1733963264202,0.24197427,3823.6,3822.9,0.8286]
[1733963264498,2.61512,3824.0,3822.9,0.8286]
[1733963264499,0.24197427,3823.9,3822.9,0.8286]
[1733963264702,2.61512,3824.0,3822.9,0.8286]
[1733963264703,0.24197427,3823.8,3822.9,0.8286]
[1733963264865,0.24197427,3823.7,3822.9,0.8286]
[1733963265197,2.61512,3824.0,3822.9,1.61334]
[1733963265198,0.24197427,3823.6,3822.9,1.61334]
[1733963265361,0.24197427,3823.5,3823.0,0.8286]
[1733963265563,0.24197427,3823.9,3823.0,0.8286]
[1733963265824,2.61512,3824.0,3823.0,0.8286]
[1733963265825,0.24197427,3823.8,3823.0,0.8286]
[1733963265995,2.52501689,3824.1,3823.1,0.78468]
[1733963265996,0.24221912,3823.7,3823.1,0.78468]
[1733963266181,0.24221912,3824.0,3823.2,0.8286]
[1733963266392,0.55,3824.4,3823.2,0.8286]
[1733963266686,2.61496,3824.2,3823.2,0.8286]
[1733963266882,0.24238071,3824.1,3823.2,0.8286]
[1733963267214,0.55,3823.9,3823.2,0.8286]
[1733963267363,0.24238071,3823.8,3822.3,0.8286]
[1733963267565,3.16514,3823.9,3822.3,0.8286]
[1733963267566,0.24238071,3823.7,3822.3,0.8286]
[1733963267807,2.61546,3823.5,3822.3,0.8286]
[1733963268029,0.261546,3823.5,3822.3,0.8286]
[1733963268239,2.85800467,3823.4,3822.3,0.8286]
[1733963268416,0.24246467,3823.3,3822.3,0.8286]
[1733963268630,2.61524,3823.8,3822.3,0.8286]
[1733963268798,2.61554,3823.3,3822.3,0.82201545]
[1733963268992,0.24247749,3823.2,3822.3,0.81979711]
[1733963269197,0.24247749,3823.1,3822.3,0.81979711]
[1733963269554,3.14405624,3823.0,3822.3,0.81979711]
[1733963269695,0.24247749,3822.9,3822.3,0.81979711]
[1733963269893,0.24247749,3822.8,3822.3,0.81979711]
[1733963270170,0.24247749,3822.7,3822.3,0.81979711]
[1733963270351,0.24247749,3822.6,3821.4,0.78505]
[1733963270654,2.6165,3821.9,3820.1,1.87611851]
[1733963270795,3.16615,3822.4,3820.2,0.36455484]
[1733963270796,0.32745,3821.8,3820.2,0.36455484]
[1733963271003,0.32745,3821.8,3819.8,1.25314531]
[1733963271004,2.6167,3821.6,3820.4,0.78524]
[1733963271595,0.26165,3821.8,3820.7,0.78519]
[1733963271917,0.24224306,3821.7,3820.9,0.78515]
[1733963272096,0.24224306,3821.7,3819.9,0.78534]
[1733963272097,0.24224306,3822.0,3820.7,0.7913]
[1733963272293,0.24224306,3821.9,3820.7,1.57649]
[1733963272557,0.24224306,3821.9,3820.5,2.39331346]
[1733963272558,0.24212489,3821.9,3820.5,2.39331346]
[1733963272712,2.85834489,3822.3,3821.2,0.7913]
[1733963272911,0.55,3822.4,3821.2,0.7913]
[1733963272912,2.85844489,3822.2,3821.2,0.7913]
[1733963273163,0.24212489,3822.1,3821.2,0.7913]
[1733963273304,0.55,3822.4,3821.2,0.7913]
[1733963273305,2.61651,3821.9,3821.2,0.7913]
[1733963274496,3.16617,3822.4,3821.2,0.7913]
[1733963274497,2.61622,3822.3,3821.2,0.7913]
[1733963274697,0.0658,3822.6,3821.2,0.7913]
[1733963274698,2.85832624,3822.2,3821.2,0.7913]
[1733963275016,0.24201624,3822.1,3821.2,0.7913]
[1733963275615,0.24201624,3822.1,3821.2,0.948943]
[1733963275852,2.61608,3822.5,3821.2,0.948943]
[1733963276051,0.24201624,3822.6,3821.2,0.948943]
[1733963276052,2.61623,3822.3,3821.2,0.7913]
[1733963276257,0.24201624,3822.2,3821.4,0.7913]
[1733963276401,2.61609,3822.5,3821.4,0.7913]
[1733963276605,0.24206003,3822.4,3821.4,0.7913]
[1733963276931,2.61609,3822.5,3821.4,0.7913]
[1733963277140,2.61609,3822.5,3821.5,0.157637]
[1733963278016,2.61615,3822.4,3821.5,0.157637]
[1733963278442,2.61615,3822.4,3821.4,0.7913]
[1733963278956,0.12808209,3822.9,3821.4,0.7913]
[1733963279275,0.55,3822.2,3820.6,0.7913]
[1733963279483,2.61677,3821.5,3820.6,0.7913]
[1733963279627,2.61682,3821.5,3820.6,0.7913]
[1733963279976,2.61685,3821.4,3820.6,0.7913]
[1733963280324,2.61671,3821.6,3820.6,0.7913]
[1733963280527,2.6167,3821.6,3820.6,0.7913]
[1733963280761,2.6167,3821.7,3820.6,0.948957]
[1733963280961,2.85886254,3821.6,3820.6,0.948957]
[1733963281185,2.61671,3821.6,3820.6,0.948957]
[1733963282373,2.61653,3821.9,3820.6,0.948957]
[1733963282578,2.61615,3822.5,3821.3,0.7913]
[1733963282760,0.24200071,3822.4,3821.3,0.7913]
[1733963282926,2.61615,3822.5,3821.3,0.7913]
[1733963283120,2.61618,3822.4,3821.3,0.7913]
[1733963283822,2.61618,3822.4,3821.3,1.57636]
[1733963284059,2.39331346,3822.7,3821.3,0.7913]
[1733963284291,0.55,3822.5,3821.3,0.7913]
[1733963284577,2.61665,3821.7,3821.3,0.7913]
[1733963285178,2.39331346,3822.3,3821.3,0.7913]
[1733963285179,2.61645,3822.0,3821.3,0.7913]
[1733963285505,0.55,3822.1,3821.3,0.7913]
[1733963285629,0.79194463,3822.2,3821.3,0.7913]
[1733963285829,2.61643,3822.0,3821.3,0.7913]
[1733963287626,2.39331346,3822.3,3821.3,0.7913]
[1733963287831,0.24193225,3822.2,3821.3,0.7913]
[1733963288086,2.61616,3822.4,3821.3,0.7913]
[1733963288280,2.39331346,3822.7,3821.3,0.7913]
[1733963288442,2.61645,3822.0,3821.3,0.7913]
[1733963290385,2.61654,3821.9,3821.3,0.7913]
[1733963291588,2.61657,3821.8,3821.3,0.7913]
[1733963292945,0.55,3822.2,3821.3,0.7913]
[1733963293246,0.55,3822.1,3821.3,0.7913]
[1733963293438,2.6168,3821.5,3821.3,0.7913]
[1733963294518,0.30990733,3821.9,3821.3,0.7913]
[1733963294727,0.30990733,3821.9,3820.3,0.78527]
[1733963294728,2.61692,3821.3,3820.8,0.7577]
[1733963295291,0.55,3821.6,3820.8,0.7577]
[1733963295485,2.61707,3821.1,3820.8,0.7577]
[1733963295687,2.61684,3821.4,3820.8,0.7577]
[1733963295924,6.09642073,3822.4,3820.8,0.7577]
[1733963295925,2.61691,3821.3,3820.8,0.7577]
[1733963296594,2.6167,3821.6,3820.8,0.7577]
[1733963296791,3.47676879,3821.7,3820.8,0.7577]
[1733963296792,2.61691,3821.3,3820.8,0.7577]
[1733963297107,0.28591778,3821.3,3820.8,0.7577]
[1733963297431,2.90288778,3821.3,3820.8,0.7577]
[1733963297573,2.61717,3821.0,3819.9,0.7577]
[1733963298199,2.61717,3821.0,3820.0,0.7577]
[1733963298405,2.61718,3820.9,3820.0,0.7577]
[1733963298852,0.28591778,3821.3,3820.0,0.7577]
[1733963298853,2.61705,3821.1,3820.0,0.7577]
[1733963299059,2.90282778,3821.3,3820.3,0.7577]
[1733963299207,2.85965233,3821.2,3820.3,0.911999]
[1733963299408,2.85968233,3821.1,3820.3,0.7577]
[1733963299649,0.23948345,3821.0,3820.3,0.7577]
[1733963299849,2.61705,3821.1,3820.3,0.7577]
[1733963300463,2.61717,3821.0,3820.3,0.7577]
[1733963301862,2.61717,3821.0,3819.8,0.1623368]
[1733963301863,2.61786,3819.9,3819.8,0.1623368]
[1733963302032,0.55,3820.2,3819.8,0.1623368]
[1733963302033,2.61772,3820.2,3819.8,0.1623368]
[1733963302211,0.31029978,3820.3,3819.9,0.8298]
[1733963302212,2.61762,3820.3,3819.9,0.8298]
[1733963302410,2.61767,3820.2,3819.9,0.8298]
[1733963302672,0.55,3820.5,3819.9,0.8298]
[1733963302830,0.8388286,3820.5,3819.9,0.8298]
[1733963303030,0.0658,3820.9,3819.9,0.8298]
[1733963303274,2.61725,3820.8,3820.0,0.00342105]
[1733963303458,2.61731,3820.8,3820.0,0.00342105]
[1733963303829,0.55,3821.1,3820.0,0.00342105]
[1733963303830,2.61711,3821.1,3820.0,0.00342105]
[1733963304033,0.13364102,3821.4,3820.3,0.8298]
[1733963304255,2.75048102,3821.4,3820.3,0.8298]
[1733963304516,2.75048102,3821.4,3820.2,0.78529]
[1733963304517,0.13364102,3821.4,3820.5,1.61503]
[1733963304716,2.61663,3821.8,3820.5,1.61503]
[1733963305024,2.61663,3821.8,3820.6,0.00342105]
[1733963305372,2.61663,3821.8,3820.6,0.78863105]
[1733963305732,0.12959185,3822.0,3820.6,0.00342105]
[1733963305900,2.61664,3821.7,3820.6,0.00342105]
[1733963306712,2.61678,3821.5,3820.6,0.00342105]
[1733963306842,2.61684,3821.4,3820.6,0.00342105]
[1733963307055,2.61693,3821.3,3820.6,0.00342105]
[1733963307851,2.61677,3821.5,3820.6,0.00342105]
[1733963309095,2.39331346,3821.2,3820.6,0.00342105]
[1733963309464,2.61732,3820.7,3820.6,0.00342105]
[1733963310877,6.16732,3820.7,3820.6,0.00342105]
[1733963311081,6.16732,3820.7,3819.8,0.1623368]
[1733963311282,2.61782,3820.0,3819.8,0.1623368]
[1733963312662,2.61757,3820.4,3819.8,0.1623368]
[1733963312922,0.24203407,3820.3,3819.8,0.1623368]
[1733963313233,0.55,3820.6,3819.9,0.7798]
[1733963313234,2.61749,3820.5,3819.9,0.7798]
[1733963313396,0.24205584,3820.4,3819.9,0.7798]
[1733963313564,0.24202979,3820.4,3819.9,0.7798]
[1733963313896,2.61749,3820.5,3819.9,0.76694962]
[1733963314099,0.24202519,3820.4,3819.9,0.76694962]
[1733963314392,2.61753,3820.4,3819.9,0.76694962]
[1733963315172,2.61759,3820.3,3819.9,0.76694962]
[1733963315561,0.261749,3820.5,3819.9,0.76694962]
[1733963315893,2.61743,3820.6,3819.9,0.76694962]
[1733963316216,0.24203476,3820.5,3819.9,0.76694962]
[1733963316411,0.13093817,3820.8,3819.9,0.76694962]
[1733963316412,2.61759,3820.3,3819.9,0.76694962]
[1733963317495,0.55,3820.7,3819.9,0.76694962]
[1733963317708,2.61767,3820.2,3819.9,0.76694962]
[1733963317899,2.879437,3820.2,3819.9,0.76694962]
[1733963318272,2.61774,3820.1,3819.9,0.76694962]
[1733963318779,0.261767,3820.2,3819.9,0.76694962]
[1733963319000,2.61786,3819.9,3819.8,0.1623368]
[1733963320625,2.61773,3820.2,3819.8,0.1623368]
[1733963320782,2.61753,3820.4,3819.9,0.8246]
[1733963320978,0.24212068,3820.3,3819.9,0.8246]
[1733963321305,0.24212068,3820.3,3819.8,0.1623368]
[1733963321306,0.24219183,3820.3,3819.8,0.1623368]
[1733963321614,2.61761,3820.3,3819.8,0.1623368]
[1733963322179,2.74823817,3820.8,3819.8,0.1623368]
[1733963322180,2.61749,3820.5,3819.8,0.1623368]
[1733963322382,0.24225597,3820.4,3819.8,0.1623368]
[1733963322692,0.24226174,3820.4,3819.8,0.1623368]
[1733963322887,2.85966174,3820.6,3819.8,0.1623368]
[1733963323090,0.24226174,3820.5,3819.8,0.1623368]
[1733963324204,2.61711,3821.1,3820.0,0.78533]
[1733963324403,0.24239403,3821.0,3820.1,0.8246]
[1733963324711,0.24239403,3820.9,3820.1,0.8246]
[1733963324899,0.24239403,3820.8,3820.1,0.8246]
[1733963325100,1.08693727,3821.5,3820.1,0.8246]
[1733963325101,0.24239403,3821.4,3820.1,0.8246]
[1733963325274,2.61732,3820.7,3820.1,0.8246]
[1733963326074,0.24245371,3820.6,3820.1,0.8246]
[1733963327115,0.24245371,3820.9,3820.1,0.8246]
[1733963327421,0.24245371,3820.8,3820.1,0.8246]
[1733963327932,2.75026459,3820.9,3820.1,0.8246]
[1733963328211,0.24253936,3820.8,3820.1,0.8246]
[1733963328421,0.24253936,3820.7,3820.1,0.8246]
[1733963328601,0.24253936,3821.1,3820.1,1.00182768]
[1733963328802,2.61685,3821.4,3820.1,1.00182768]
[1733963328803,0.24253936,3821.0,3820.3,0.8246]
[1733963329103,2.61685,3821.4,3820.4,0.8246]
[1733963329302,0.24258686,3821.3,3820.4,0.8246]
[1733963329515,0.24258686,3821.2,3820.4,1.00330977]
[1733963329822,2.61677,3821.5,3820.5,0.8246]
[1733963330029,0.24258686,3821.7,3820.5,0.8246]
[1733963330030,0.24258686,3821.4,3820.5,0.8246]
[1733963330319,0.24258686,3821.3,3820.5,0.8246]
[1733963332235,2.61684,3821.4,3820.5,0.8246]
[1733963332563,2.8594959,3821.3,3820.5,0.8246]
[1733963332770,0.2425859,3821.2,3820.5,0.8246]
[1733963334580,2.8595659,3821.2,3820.5,0.8246]
[1733963334720,2.61698,3821.2,3820.5,0.8246]
[1733963335317,2.61713,3821.0,3820.5,0.8246]
[1733963336456,0.24263389,3820.9,3820.5,0.8246]
[1733963336855,2.61713,3821.0,3820.5,0.8246]
[1733963338442,2.85984736,3820.9,3820.5,0.8246]
[1733963338737,2.61719,3820.9,3820.5,0.8246]
[1733963339235,2.61727,3820.8,3820.5,0.8246]
[1733963340239,2.61738,3820.6,3820.5,0.8246]
[1733963340442,2.61738,3820.6,3819.9,0.8281]
[1733963340443,2.61756,3820.4,3819.9,0.8281]
[1733963340625,1.34866427,3820.8,3819.9,0.8281]
[1733963340825,2.61786,3819.9,3819.8,0.1623368]
[1733963341063,2.74646,3819.9,3819.8,0.1623368]
[1733963341327,3.81369017,3819.9,3819.8,0.1623368]
[1733963341523,3.81369816,3819.9,3819.8,0.1623368]
[1733963343438,7.71209945,3819.9,3819.8,0.1623368]
[1733963343640,12.53987752,3819.9,3819.8,0.1623368]
[1733963343844,12.53987752,3819.9,3818.5,0.8281]
[1733963343845,2.61843,3819.1,3818.5,0.8281]
[1733963344240,2.61843,3819.1,3818.1,0.8281]
[1733963344241,0.55,3819.1,3818.1,0.8281]
[1733963344442,0.55,3819.1,3817.4,2.18161702]
[1733963344443,2.61885,3818.5,3817.4,1.09080851]
[1733963344643,0.55,3818.7,3817.4,1.09080851]
[1733963344966,0.79231644,3818.7,3817.7,0.8281]
[1733963345268,2.6187,3818.7,3817.7,0.8281]
[1733963345670,0.55,3818.9,3817.7,0.8281]
[1733963345841,0.79208794,3818.9,3817.7,0.8281]
[1733963346043,2.61866,3818.8,3817.7,0.8281]
[1733963346257,0.24193916,3818.7,3817.7,0.8281]
[1733963346463,0.55,3818.6,3817.7,0.8281]
[1733963346632,2.61896,3818.4,3817.7,0.8281]
[1733963347050,2.61917,3818.1,3817.7,0.8281]
[1733963347258,0.55,3818.2,3816.4,0.7581]
[1733963347476,0.55,3818.2,3816.6,0.7581]
[1733963347773,2.61926,3817.9,3816.6,0.7581]
[1733963347974,2.61926,3817.9,3816.7,0.154417]
[1733963348280,0.55,3817.7,3816.6,0.7581]
[1733963348481,2.61959,3817.4,3816.6,0.7581]
[1733963348936,2.61966,3817.3,3816.6,0.7581]
[1733963349137,2.6198,3817.1,3816.6,0.7581]
[1733963349771,0.1286,3817.5,3816.6,0.7581]
[1733963349772,2.61962,3817.4,3816.6,0.7581]
[1733963349973,0.274822,3817.3,3816.6,0.7581]
[1733963350177,2.894482,3817.3,3816.6,0.7581]
[1733963350898,2.61931,3817.8,3816.6,0.7581]
[1733963351186,2.61931,3817.8,3816.7,0.7978]
[1733963351352,2.61931,3817.8,3816.4,0.78607]
[1733963351353,2.61936,3817.8,3816.4,0.78607]
[1733963351552,0.6786,3818.2,3816.5,0.7978]
[1733963351762,2.6193,3817.9,3816.6,0.7978]
[1733963351965,3.29765,3818.2,3816.8,0.7978]
[1733963351966,3.29768,3818.2,3816.8,0.7978]
[1733963352255,0.55,3818.0,3816.2,0.7978]
[1733963352661,0.55,3817.8,3816.3,0.7861]
[1733963352966,0.55,3817.8,3816.0,3.1623368]
[1733963352967,0.55,3817.8,3816.5,0.7978]
[1733963353342,2.61946,3817.6,3816.5,0.7978]
[1733963353572,0.261946,3817.5,3816.5,0.7978]
[1733963354048,0.261946,3817.5,3816.5,0.7478]
[1733963354256,2.6198,3817.1,3816.5,0.7478]
[1733963354480,2.61986,3817.0,3816.5,0.7478]
[1733963356080,0.440546,3817.5,3816.5,0.7478]
[1733963356294,2.61994,3816.9,3816.0,0.1623368]
[1733963356496,2.61976,3817.2,3816.0,1.2105468]
[1733963356722,0.2885996,3817.4,3816.1,1.04818]
[1733963356894,0.2885996,3817.4,3816.2,1.04813]
[1733963357057,3.0,3817.9,3816.4,1.04809]
[1733963357265,3.1786,3818.3,3816.3,0.7978]
[1733963357599,2.61941,3817.7,3816.5,0.7978]
[1733963357771,2.61941,3817.7,3816.6,0.7978]
[1733963358323,2.75076452,3817.9,3816.7,0.7978]
[1733963358502,0.27507645,3817.8,3816.8,0.7978]
[1733963358800,2.61896,3818.4,3817.0,0.7978]
[1733963359000,0.1786,3818.9,3817.3,0.7978]
[1733963359199,2.61883,3818.5,3817.3,0.7978]
[1733963359698,2.61891,3818.4,3817.3,0.7978]
[1733963360016,2.61891,3818.4,3816.7,1.048]
[1733963360017,2.61874,3818.7,3816.7,1.048]
[1733963360232,0.279734,3818.6,3817.4,1.04781]
[1733963360379,0.279734,3818.6,3817.5,0.7978]
[1733963360700,0.279734,3818.6,3817.6,1.04777]
[1733963360856,0.279734,3818.6,3817.7,0.7978]
[1733963361061,0.13009775,3818.8,3817.7,0.7978]
[1733963362392,2.61891,3818.4,3817.7,0.7978]
[1733963362710,0.13009775,3818.8,3817.7,0.7978]
[1733963362876,2.61876,3818.6,3817.7,0.7978]
[1733963363106,2.61885,3818.5,3817.7,0.7978]
[1733963363271,0.261885,3818.4,3817.7,0.7978]
[1733963364728,2.61869,3818.7,3817.7,0.7978]
[1733963364888,0.13009775,3818.8,3817.7,0.7978]
[1733963365093,0.13009775,3818.8,3817.7,1.84554]
[1733963366580,0.13009775,3818.8,3817.7,0.7978]
[1733963367485,2.74874775,3818.8,3817.7,0.7978]
[1733963367936,2.6187,3818.7,3817.7,0.7978]
[1733963368897,2.61876,3818.6,3817.7,0.7978]
[1733963369415,2.74872775,3818.8,3817.7,0.7978]
[1733963369860,0.24195692,3818.7,3817.7,0.7978]
[1733963370564,2.61876,3818.6,3817.7,0.7978]
[1733963370769,0.13009775,3818.8,3817.7,0.7978]
[1733963371144,2.61884,3818.5,3817.7,0.7978]
[1733963371338,0.24197457,3818.4,3817.7,0.7978]
[1733963371517,0.24210769,3818.4,3817.7,0.7978]
[1733963371830,0.24210769,3818.5,3817.7,0.7978]
[1733963372030,0.28608677,3818.4,3817.7,0.7978]
[1733963372629,0.52819446,3818.4,3817.7,0.7978]
[1733963372874,0.28608677,3818.4,3817.7,0.7978]
[1733963373057,0.24210769,3818.4,3817.7,0.7978]
[1733963373402,0.24210769,3818.8,3817.8,0.7615]
[1733963373566,2.61862,3818.9,3817.8,0.7615]
[1733963373567,0.24210769,3818.7,3817.8,0.7615]
[1733963373772,0.24210769,3818.6,3817.8,0.7615]
[1733963373976,0.24210769,3818.5,3817.8,0.7615]
[1733963374119,0.24210769,3818.4,3817.8,0.7615]
[1733963374473,0.24210769,3818.3,3817.8,0.7615]
[1733963374651,0.24210769,3818.8,3817.8,0.7615]
[1733963374857,0.24210769,3818.7,3817.8,0.7615]
[1733963375029,0.24210769,3818.6,3817.8,0.7615]
[1733963375238,0.24210769,3818.5,3817.8,0.7615]
[1733963375448,0.24210769,3818.4,3817.8,0.7615]
[1733963375658,0.24210769,3818.3,3817.8,0.7615]
[1733963375834,2.61862,3818.8,3817.8,0.7615]
[1733963375835,0.24210769,3818.7,3817.8,0.7615]
[1733963376058,0.24210769,3818.6,3817.8,0.7615]
[1733963376257,0.24210769,3818.5,3817.8,0.7615]
[1733963376459,0.24210769,3818.4,3817.8,0.7615]
[1733963376699,0.24210769,3818.3,3817.8,0.7615]
[1733963376860,2.86080769,3818.7,3817.8,0.7615]
[1733963377065,0.51742327,3818.6,3817.8,0.7615]
[1733963377284,0.24210769,3818.5,3817.8,0.7615]
[1733963377594,0.24210769,3818.4,3817.8,0.7615]
[1733963377738,2.89407558,3818.6,3817.8,0.7615]
[1733963377739,0.24210769,3818.3,3817.8,0.7615]
[1733963377938,0.24210769,3818.5,3817.8,0.7615]
[1733963378168,2.89407558,3818.6,3817.8,0.7615]
[1733963378169,0.24210769,3818.4,3817.8,0.7615]
[1733963378495,2.89407558,3818.6,3817.8,0.7615]
[1733963378496,0.24210769,3818.3,3817.8,0.7615]
[1733963378657,0.24210769,3818.5,3817.8,0.7615]
[1733963378997,0.24210769,3818.4,3817.8,0.7615]
[1733963379234,0.24210769,3818.3,3817.8,0.7615]
[1733963380292,0.24210769,3818.2,3817.8,0.7615]
[1733963380443,0.24210769,3818.3,3817.8,0.7615]
[1733963380645,0.24210769,3818.2,3817.8,0.7615]
[1733963380976,0.24210769,3818.5,3817.8,0.7615]
[1733963381180,0.24210769,3818.4,3817.8,0.7615]
[1733963381381,0.24210769,3818.3,3817.8,0.7615]
[1733963381594,0.24210769,3818.2,3817.8,0.7615]
[1733963381791,0.24210769,3818.4,3817.8,0.7615]
[1733963381990,0.24210769,3818.3,3817.8,0.7615]
[1733963382226,0.24210769,3818.2,3817.8,0.7615]
[1733963382455,0.24210769,3818.4,3817.8,0.7615]
[1733963382639,0.13368018,3818.9,3816.2,4.09080851]
[1733963382640,2.61933,3817.8,3816.6,0.8144]
[1733963382929,0.1786,3818.5,3816.7,0.8144]
[1733963382930,0.5046193,3817.7,3816.7,0.8144]
[1733963383085,2.61952,3817.5,3816.7,1.34377911]
[1733963383610,2.61937,3817.8,3816.7,1.34377911]
[1733963383779,0.24270181,3817.7,3816.8,0.8144]
[1733963383977,0.24270336,3817.6,3816.8,0.8144]
[1733963384177,0.1786,3818.5,3816.8,0.8144]
[1733963384178,0.24270336,3817.5,3816.8,0.8144]
[1733963384480,0.24270336,3817.6,3816.8,0.8144]
[1733963384736,0.24270336,3817.5,3816.8,0.8144]
[1733963384936,0.24270336,3817.6,3816.8,0.8144]
[1733963385201,0.24270336,3817.5,3816.8,0.7644]
[1733963385412,2.61945,3817.6,3816.8,0.7644]
[1733963385612,0.24285167,3817.5,3816.8,0.7644]
[1733963385843,2.61918,3818.0,3816.8,1.81239]
[1733963386146,2.86209914,3817.9,3816.8,1.04799]
[1733963386343,0.24284914,3817.8,3816.8,1.04799]
[1733963386546,0.24284914,3817.7,3816.8,1.04799]
[1733963386695,0.24284914,3817.6,3816.8,1.04799]
[1733963387072,0.24284914,3817.5,3816.8,1.20513006]
[1733963387203,2.61925,3817.9,3816.8,1.20513006]
[1733963387391,0.24305284,3817.8,3816.8,1.20513006]
[1733963387590,0.24305284,3817.7,3816.8,1.20513006]
[1733963387785,0.24305284,3817.6,3816.8,1.20513006]
[1733963388018,3.93370997,3818.4,3816.8,1.20513006]
[1733963388019,0.24305284,3817.5,3816.9,0.8144]
[1733963388225,2.61932,3817.8,3816.9,0.8144]
[1733963388465,0.24315291,3817.7,3816.9,0.8144]
[1733963388593,0.24315291,3817.6,3816.9,0.8144]
[1733963388786,0.24315291,3817.5,3816.9,0.80742115]
[1733963388987,2.881252,3817.8,3816.9,0.80742115]
[1733963389244,0.24319253,3817.7,3816.9,0.80742115]
[1733963389544,2.881252,3817.8,3816.9,0.80742115]
[1733963389545,0.24316797,3817.6,3816.9,0.80742115]
[1733963389731,2.881252,3817.8,3816.9,0.23788417]
[1733963389732,0.24316227,3817.5,3816.9,0.23788417]
[1733963389933,3.83521111,3818.1,3816.9,0.23788417]
[1733963390133,3.76192038,3818.0,3816.8,1.04799]
[1733963390439,0.24317668,3817.9,3816.6,0.52341056]
[1733963390585,0.24317668,3817.8,3816.8,1.04799]
[1733963390954,0.24317668,3817.7,3816.6,1.57145056]
[1733963391089,0.24317668,3817.6,3816.7,1.04801]
[1733963391291,0.24317668,3817.5,3816.7,1.04801]
[1733963391488,2.61934,3817.8,3816.7,1.04801]
[1733963391836,0.24312232,3817.7,3816.7,1.04801]
[1733963392042,1.21604111,3818.1,3816.8,0.8245]
[1733963392043,0.24312232,3817.6,3816.8,0.8245]
[1733963392222,0.12987114,3818.1,3817.0,0.8245]
[1733963392409,0.24325064,3818.0,3817.0,0.8245]
[1733963392625,0.24322905,3817.9,3817.0,0.8245]
[1733963392829,0.24322905,3817.8,3817.0,0.8245]
[1733963393145,0.24322905,3817.7,3817.2,0.8245]
[1733963393288,0.12883197,3818.2,3817.2,0.8245]
[1733963393489,2.61922,3818.0,3817.2,0.8245]
[1733963393688,0.24321772,3817.9,3817.2,0.8245]
[1733963393937,0.24321772,3817.8,3817.2,0.8245]
[1733963394101,2.74787197,3818.2,3817.2,0.8245]
[1733963394305,0.24323067,3818.1,3817.2,0.8245]
[1733963394511,0.24323067,3818.0,3817.2,0.8245]
[1733963394745,0.24323067,3817.9,3817.2,0.8245]
[1733963394887,0.24323067,3817.8,3817.2,0.8245]
[1733963395094,2.61904,3818.2,3817.2,0.8245]
[1733963395294,0.24326209,3818.1,3817.2,0.8245]
[1733963395652,0.24326209,3818.0,3817.2,0.8245]
[1733963395952,0.24326209,3817.9,3817.2,0.8245]
[1733963396200,0.24326209,3817.8,3817.2,0.8245]
[1733963396349,0.24327632,3817.7,3817.2,0.8245]
[1733963396550,0.24327632,3818.1,3817.2,0.8245]
[1733963396796,0.24327632,3818.0,3817.2,0.8245]
[1733963397097,0.24327632,3817.9,3817.2,0.8245]
[1733963397280,0.24327632,3817.8,3817.2,0.8245]
[1733963397488,2.6191,3818.1,3817.2,0.8245]
[1733963397794,0.24328596,3818.0,3817.2,0.8245]
[1733963397995,0.24328596,3817.9,3817.2,0.8245]
[1733963398198,0.24328596,3817.8,3817.2,0.8245]
[1733963398413,3.70512997,3818.3,3817.2,0.8245]
[1733963398569,1.14358725,3818.2,3817.2,0.8245]
[1733963398753,0.24327064,3818.1,3817.2,0.8245]
[1733963398952,0.24327064,3818.0,3817.2,0.8245]
[1733963399171,0.24328064,3817.9,3817.5,0.8245]
[1733963400084,0.24328064,3817.9,3817.6,0.8245]
[1733963400398,0.24328064,3817.9,3817.6,1.01173]
[1733963400601,0.24328064,3817.9,3817.8,1.04772]
[1733963400814,0.24328064,3817.9,3817.8,1.87222]
[1733963402632,2.17549897,3819.3,3817.8,1.87222]